fUSD/lending_fUSD_20241114
["ID","MTS","AMOUNT","RATE_DAILY","PERIOD"]
[342224342,1731599432998,-15005.79617685,9.91e-05,2]
[342224344,1731599433007,-300.0,9.943e-05,2]
[342224346,1731599433016,-433.2,9.943e-05,2]
[342224348,1731599433026,-300.0,9.943e-05,2]
[342224350,1731599433036,-433.2,9.943e-05,2]
[342224352,1731599433046,-433.2,9.943e-05,2]
[342224355,1731599433056,-150.0,9.943e-05,2]
[342224358,1731599433066,-433.2,9.943e-05,2]
[342224361,1731599433076,-433.2,9.943e-05,2]
[342224364,1731599433087,-433.2,9.943e-05,2]
[342224366,1731599433097,-433.2,9.943e-05,2]
[342224368,1731599433108,-176.246,9.965e-05,2]
[342224370,1731599433121,-612.50897127,9.967e-05,2]
[342224376,1731599433165,-1342.58402873,9.967e-05,2]
[342224378,1731599433176,-162.51734529,9.973e-05,2]
[342224380,1731599433186,-500.0,9.973e-05,2]
[342224382,1731599433200,-500.0,9.973e-05,2]
[342224384,1731599433210,-500.0,9.973e-05,2]
[342224386,1731599433220,-500.0,9.973e-05,2]
[342224388,1731599433231,-951.03554679,9.992e-05,2]
[342224390,1731599433243,-343.11532811,9.992e-05,2]
[342224392,1731599433253,-860.14387423,9.992e-05,2]
[342224394,1731599433265,-515.68379577,9.992e-05,2]
[342224396,1731599433276,-733.565359,9.992e-05,2]
[342224398,1731599433285,-1622.8939748,9.993e-05,2]
[342224400,1731599433295,-1725.3184922,9.993e-05,2]
[342224402,1731599433305,-911.1282099,9.993e-05,2]
[342224404,1731599433315,-1811.99137554,9.999e-05,2]
[342224406,1731599433325,-626.0,0.0001,2]
[342224408,1731599433335,-46923.41879279,0.0001,2]
[342224415,1731599434536,-5668.98034651,0.0001,2]
[342224461,1731599439322,-660.0,0.0001,2]
[342224463,1731599439331,-21424.03077677,0.0001,2]
[342224465,1731599439341,-90278.39472453,0.0001,2]
[342224467,1731599439352,-14143441.19561135,0.0001,2]
[342224469,1731599439361,-311.4424927,0.0001,2]
[342224471,1731599439376,-200.0,0.0001,2]
[342224473,1731599439385,-250.0,0.0001,2]
[342224475,1731599439394,-241.196,0.0001,2]
[342224477,1731599439403,-282.457,0.0001,2]
[342224479,1731599439412,-1000.0,0.0001,2]
[342224481,1731599439421,-400.45313793,0.0001,2]
[342224482,1731599439431,-213281.81430117,0.0001,2]
[342224484,1731599439440,-1000.0,0.0001,2]
[342224485,1731599439449,-1000.0,0.0001,2]
[342224486,1731599439458,-1000.0,0.0001,2]
[342224487,1731599439467,-118026.0,0.0001,2]
[342224488,1731599439477,-12786.94505322,0.0001,2]
[342224489,1731599439486,-12639927.18451473,0.0001,2]
[342224490,1731599439497,-1261.2467511,0.0001,2]
[342224491,1731599439508,-3770.58751831,0.0001,2]
[342224492,1731599439536,-1043051.08047929,0.0001,2]
[342224493,1731599439556,-509037.35554504,0.0001,2]
[342224494,1731599439580,-52320.21259995,0.0001,2]
[342224495,1731599439591,-8827.6,0.0001,2]
[342224498,1731599440305,-200.0,9.9e-05,2]
[342224501,1731599440690,-108074.30908408,0.0001,2]
[342224502,1731599440708,-546.02766795,0.0001,2]
[342224505,1731599440728,-1556.76670187,0.0001,2]
[342224511,1731599440786,-3099.45446096,0.0001,2]
[342224513,1731599440803,-281.3614,0.0001,2]
[342224514,1731599440815,-352.67232,0.0001,2]
[342224515,1731599440827,-8824.0,0.0001,2]
[342224529,1731599443447,-279.92356222,0.0001,2]
[342224530,1731599443459,-309.07643778,0.0001,2]
[342224531,1731599443469,-466.98502969,0.0001,2]
[342224533,1731599443530,-4466808.3870032,0.0001,2]
[342224534,1731599443541,-53808.62922,0.0001,2]
[342224535,1731599443552,-444.60243,0.0001,2]
[342224536,1731599443652,-4445.99699057,0.0001,2]
[342224537,1731599443663,-2510.06662043,0.0001,2]
[342224538,1731599443675,-4195.37002125,0.0001,2]
[342224539,1731599443686,-5947.03349882,0.0001,2]
[342224540,1731599443698,-5986.89,0.0001,2]
[342224541,1731599443709,-881.108348,0.0001,2]
[342224542,1731599443720,-526.6052595,0.0001,2]
[342224543,1731599443740,-96483.30768323,0.0001,2]
[342224544,1731599443751,-482.80604555,0.0001,2]
[342224545,1731599443763,-4976.88509144,0.0001,2]
[342224546,1731599443775,-3901.57763869,0.0001,2]
[342224547,1731599443787,-308372.156237,0.0001,2]
[342224548,1731599443808,-1500.0,0.0001,2]
[342224813,1731599446396,-1536.70000001,0.0001,2]
[342224816,1731599446407,-8916.4752451,0.0001,2]
[342224818,1731599446419,-1376.6,0.0001,2]
[342224825,1731599446471,-83351.21955741,0.0001,2]
[342224834,1731599446555,-306900.00000384,0.0001,2]
[342224843,1731599446641,-1534.645235,0.0001,2]
[342225850,1731600331684,-156.18955188,8.219e-05,2]
[342225851,1731600429151,-1240.99044812,8.219e-05,2]
[342225852,1731600429172,-1447.0128577,9.194e-05,2]
[342225853,1731600434087,-971.13477787,9.194e-05,2]
[342225854,1731600439103,-14837.24683713,9.194e-05,2]
[342225855,1731600558101,-150.0,9e-05,2]
[342225861,1731600631769,-1000.0,9.076e-05,2]
[342225862,1731600631779,-3458.8455273,9.194e-05,2]
[342225863,1731600631789,-1507.20105186,9.218e-05,2]
[342225865,1731600631799,-250.0,9.218e-05,2]
[342225867,1731600631810,-250.0,9.245e-05,2]
[342225869,1731600631820,-614.64,9.297e-05,2]
[342225871,1731600631829,-885.37,9.32e-05,2]
[342225873,1731600631839,-367.5,9.32e-05,2]
[342225874,1731600631848,-300.0,9.321e-05,2]
[342225877,1731600631861,-6487.0277,9.322e-05,2]
[342225878,1731600631871,-16801.75170166,9.322e-05,2]
[342225881,1731600631886,-3079.16666141,9.322e-05,2]
[342225883,1731600631897,-771.80354033,9.322e-05,2]
[342225884,1731600631909,-8780.0,9.322e-05,2]
[342225885,1731600631922,-43846.0,9.322e-05,2]
[342225886,1731600631934,-15535.8177966,9.322e-05,2]
[342225887,1731600631943,-164.78,9.344e-05,2]
[342225888,1731600631953,-433.2,9.378e-05,2]
[342225889,1731600631963,-4391.7732,9.422e-05,2]
[342225890,1731600631972,-145769.3937,9.422e-05,2]
[342225891,1731600631982,-2864.0131,9.422e-05,2]
[342225892,1731600631991,-9179.2508,9.422e-05,2]
[342225893,1731600632001,-500.0,9.422e-05,2]
[342225894,1731600632011,-100000.0,9.422e-05,2]
[342225895,1731600632020,-2916.96,9.67e-05,2]
[342225896,1731600632030,-1120.04,9.67e-05,2]
[342225897,1731600632039,-9999.99,9.67e-05,2]
[342225898,1731600632049,-19952.21,9.67e-05,2]
[342225899,1731600632058,-9999.99,9.67e-05,2]
[342225901,1731600632068,-1092.21,9.67e-05,2]
[342225903,1731600632077,-373.69,9.67e-05,2]
[342225905,1731600632087,-150.99,9.67e-05,2]
[342225907,1731600632096,-5710.91,9.67e-05,2]
[342225909,1731600632107,-1103.49,9.67e-05,2]
[342225911,1731600632116,-270.23,9.67e-05,2]
[342225913,1731600632126,-533430.62881758,9.8e-05,2]
[342225915,1731600632135,-200.0,9.9e-05,2]
[342225917,1731600632145,-1000.0,9.9e-05,2]
[342225919,1731600632154,-243856.36521731,9.9e-05,2]
[342225921,1731600632166,-6143.63478269,9.9e-05,2]
[342225923,1731600632176,-150.0,9.919e-05,2]
[342225925,1731600632185,-5933.0,9.919e-05,2]
[342225927,1731600632195,-1160.0,9.919e-05,2]
[342225929,1731600632204,-13639.0,9.919e-05,2]
[342225931,1731600632213,-433.2,9.943e-05,2]
[342225933,1731600632222,-433.2,9.943e-05,2]
[342225935,1731600632232,-433.2,9.943e-05,2]
[342225937,1731600632242,-433.2,9.943e-05,2]
[342225939,1731600632251,-2280.748,9.95e-05,2]
[342225941,1731600632260,-175.877,9.95e-05,2]
[342225943,1731600632270,-500.0,9.973e-05,2]
[342225945,1731600632279,-507.35824058,9.973e-05,2]
[342225947,1731600632289,-500.0,9.973e-05,2]
[342225949,1731600632299,-500.0,9.973e-05,2]
[342225951,1731600632308,-500.0,9.973e-05,2]
[342225953,1731600632318,-347.35582032,9.973e-05,2]
[342225955,1731600632327,-14708.6500371,9.992e-05,2]
[342225957,1731600632337,-832.2465642,9.992e-05,2]
[342225959,1731600632347,-745.3426878,9.992e-05,2]
[342225961,1731600632359,-1276.8764292,9.992e-05,2]
[342225963,1731600632369,-3364.8194794,9.992e-05,2]
[342225965,1731600632378,-231.067234,9.992e-05,2]
[342225967,1731600632388,-14269.8133934,9.993e-05,2]
[342225969,1731600632397,-805.32094,9.993e-05,2]
[342225971,1731600632407,-721.2286596,9.993e-05,2]
[342225973,1731600632417,-1422.7864022,9.993e-05,2]
[342225975,1731600632426,-3749.3208362,9.993e-05,2]
[342225977,1731600632435,-257.4715227,9.993e-05,2]
[342225979,1731600632444,-308.53380491,9.999e-05,2]
[342225981,1731600632454,-1244.13747543,9.999e-05,2]
[342225983,1731600632463,-587.0,0.0001,2]
[342225985,1731600632472,-561514.3337964,0.0001,2]
[342225987,1731600632483,-88070.46893401,0.0001,2]
[342225990,1731600632497,-68911.7423615,0.0001,2]
[342225992,1731600632508,-2635.26,0.0001,2]
[342226472,1731600637463,-17383.96716344,9.322e-05,2]
[342226474,1731600637475,-1234.63522344,9.322e-05,2]
[342226484,1731600637576,-737.50905639,9.322e-05,2]
[342226486,1731600637591,-545.30960376,9.322e-05,2]
[342226488,1731600637603,-8342.10840974,9.322e-05,2]
[342226490,1731600637618,-8601.62064323,9.322e-05,2]
[342226492,1731600637629,-1091.0,9.919e-05,2]
[342226493,1731600637638,-497.56799491,0.0001,2]
[342226495,1731600637650,-108114.40570375,0.0001,2]
[342226497,1731600637662,-880.20817946,0.0001,2]
[342226500,1731600637686,-1967.29770801,0.0001,2]
[342226502,1731600637698,-3949.66852044,0.0001,2]
[342226504,1731600637710,-2610.0,0.0001,2]
[342226508,1731600637745,-27569202.2727485,0.0001,2]
[342226511,1731600637758,-288.15516463,0.0001,2]
[342226522,1731600637883,-298.66703379,0.0001,2]
[342226524,1731600637894,-121948.58810467,0.0001,2]
[342226526,1731600637906,-925.901525,0.0001,2]
[342226528,1731600637918,-440.214775,0.0001,2]
[342226530,1731600637929,-565.59090259,0.0001,2]
[342226656,1731600639394,-728.82389682,0.0001,2]
[342226658,1731600639407,-4401.55,0.0001,2]
[342226663,1731600639448,-798.37812705,0.0001,2]
[342226757,1731600640347,-308.76399999,0.0001,2]
[342226759,1731600640358,-879.3785,0.0001,2]
[342226962,1731600642378,-4983.15725543,0.0001,2]
[342226972,1731600642432,-5328.85403258,0.0001,2]
[342226975,1731600642443,-4215.05651759,0.0001,2]
[342226979,1731600642489,-70885.35633211,0.0001,2]
[342226980,1731600642501,-16330.10518031,0.0001,2]
[342226981,1731600642511,-7523.95176624,0.0001,2]
[342226982,1731600642551,-6953.50616531,0.0001,2]
[342226983,1731600642563,-3292.98379877,0.0001,2]
[342226984,1731600642574,-6233.990245,0.0001,2]
[342226986,1731600642595,-356.9459964,0.0001,2]
[342226989,1731600642612,-88090.3048538,0.0001,2]
[342226991,1731600642625,-3281.88953443,0.0001,2]
[342226993,1731600642637,-12190.11046557,0.0001,2]
[342227000,1731600642713,-382.80804144,0.0001,2]
[342227002,1731600642724,-428488.3379476,0.0001,2]
[342227428,1731600646940,-4393.63108197,0.0001,2]
[342227430,1731600646951,-88123.0,0.0001,2]
[342227432,1731600646963,-1034.30271289,0.0001,2]
[342227439,1731600647017,-300.0,0.0001,2]
[342227441,1731600647033,-673.61878931,0.0001,2]
[342227444,1731600647045,-8800.0,0.0001,2]
[342227447,1731600647066,-683.30005,0.0001,2]
[342227449,1731600647077,-1123.4234155,0.0001,2]
[342227452,1731600647094,-2086.79999729,0.0001,2]
[342227454,1731600647110,-4405.56577556,0.0001,2]
[342228133,1731600724833,199.8502,8.95e-05,2]
[342228135,1731601101918,500.0,0.000217,120]
[342228137,1731601632093,-1371.59,8.219e-05,2]
[342228138,1731601632116,-250.0,8.585e-05,2]
[342228139,1731601632138,-1344.27152964,8.607e-05,2]
[342228140,1731601635485,184.59005078,0.000163,120]
[342228141,1731601636086,-282.10202734,8.607e-05,2]
[342228142,1731601647099,-381.33644302,8.607e-05,2]
[342228143,1731601647123,-250.0,8.626e-05,2]
[342228144,1731601647144,-178.72175045,8.732e-05,2]
[342228146,1731601729225,467.35105188,0.000145,120]
[342228149,1731601745150,-1303.01,8.219e-05,2]
[342228150,1731601745172,-821.27824955,8.732e-05,2]
[342228151,1731601745194,-254.93,8.762e-05,2]
[342228152,1731601745216,-432.72,8.77e-05,2]
[342228153,1731601745237,-1526.3,8.77e-05,2]
[342228154,1731601745466,-3.15369,8.77e-05,2]
[342228155,1731601751186,-430.04631,8.77e-05,2]
[342228156,1731601751209,-206.99,8.821e-05,2]
[342228157,1731601751231,-300.0,8.877e-05,2]
[342228158,1731601751253,-500.0,8.877e-05,2]
[342228159,1731601751275,-500.0,8.878e-05,2]
[342228160,1731601751295,-500.0,8.878e-05,2]
[342228161,1731601751316,-500.0,8.878e-05,2]
[342228162,1731601751338,-500.0,8.878e-05,2]
[342228163,1731601751359,-500.0,8.878e-05,2]
[342228164,1731601751379,-268.09126,8.878e-05,2]
[342228165,1731601751427,305.95521214,0.00013698,120]
[342228167,1731601765091,-231.90874,8.878e-05,2]
[342228169,1731601792128,0.15526,8.834e-05,2]
[342228185,1731601831587,-199.84474,8.834e-05,2]
[342228187,1731601831596,-165.0,9.051e-05,2]
[342228188,1731601831606,-400.0,9.1e-05,3]
[342228190,1731601831615,-433.2,9.11e-05,2]
[342228191,1731601831623,-433.2,9.11e-05,2]
[342228192,1731601831633,-34.75705632,9.154e-05,2]
[342228193,1731601831755,-145.79294368,9.154e-05,2]
[342228194,1731601831765,-1263.83,9.2e-05,2]
[342228195,1731601831775,-900.0,9.2e-05,3]
[342228196,1731601831784,-1300.0,9.3e-05,3]
[342228197,1731601831793,-892.47628881,9.321e-05,2]
[342228198,1731601831803,-150.0,9.321e-05,2]
[342228199,1731601831812,-30477.4082,9.322e-05,2]
[342228200,1731601831821,-1738.847,9.322e-05,2]
[342228201,1731601831830,-1431.7459,9.322e-05,2]
[342228202,1731601831840,-350.7286,9.322e-05,2]
[342228203,1731601831850,-10597.2509,9.322e-05,2]
[342228204,1731601831859,-5391.77,9.322e-05,2]
[342228205,1731601831869,-433.2,9.378e-05,2]
[342228206,1731601831879,-1800.0,9.4e-05,3]
[342228207,1731601831888,-2300.0,9.5e-05,3]
[342228208,1731601831898,-400.0,9.6e-05,3]
[342228209,1731601831908,-1000.0,9.642e-05,2]
[342228210,1731601831918,-6946.41,9.67e-05,2]
[342228211,1731601831929,-560.1,9.67e-05,2]
[342228212,1731601831939,-7207.57,9.67e-05,2]
[342228213,1731601831951,-400.0,9.7e-05,3]
[342228214,1731601831973,-263.5757,9.8e-05,2]
[342228215,1731601831991,-400.0,9.8e-05,3]
[342228217,1731601832001,-261.83406558,9.821e-05,2]
[342228219,1731601832010,-1000.0,9.823e-05,2]
[342228221,1731601832020,-2581.478,9.888e-05,2]
[342228223,1731601832030,-2500.0,9.899e-05,2]
[342228225,1731601832040,-1944.55994,9.9e-05,2]
[342228226,1731601832050,-1476.7391,9.9e-05,2]
[342228227,1731601832059,-27897.399,9.9e-05,2]
[342228228,1731601832069,-10119.1266,9.9e-05,2]
[342228229,1731601832078,-631.6596,9.9e-05,2]
[342228230,1731601832088,-9737.1658,9.9e-05,2]
[342228231,1731601832097,-4404.6443,9.9e-05,2]
[342228232,1731601832107,-9925.541,9.9e-05,2]
[342228233,1731601832116,-1000.0,9.9e-05,2]
[342228234,1731601832126,-400.0,9.9e-05,3]
[342228235,1731601832135,-433.2,9.943e-05,2]
[342228236,1731601832144,-433.2,9.943e-05,2]
[342228237,1731601832154,-433.2,9.943e-05,2]
[342228238,1731601832163,-433.2,9.943e-05,2]
[342228239,1731601832172,-168.13,9.943e-05,2]
[342228240,1731601832181,-433.11,9.943e-05,2]
[342228241,1731601832190,-500.0,9.973e-05,2]
[342228242,1731601832199,-500.0,9.973e-05,2]
[342228243,1731601832211,-500.0,9.973e-05,2]
[342228244,1731601832220,-474.07600176,9.973e-05,2]
[342228245,1731601832229,-2009.943,9.973e-05,2]
[342228246,1731601832239,-175.214,9.973e-05,2]
[342228247,1731601832248,-47997.67832372,9.98e-05,2]
[342228248,1731601832257,-1313.7384103,9.988e-05,2]
[342228249,1731601832266,-1028.1353314,9.988e-05,2]
[342228250,1731601832275,-236.1851694,9.988e-05,2]
[342228251,1731601832285,-4840.5361649,9.992e-05,2]
[342228252,1731601832294,-1817.7254742,9.992e-05,2]
[342228253,1731601832304,-701.4791884,9.992e-05,2]
[342228254,1731601832313,-838.558956,9.993e-05,2]
[342228255,1731601832322,-220.70786873,9.999e-05,2]
[342228256,1731601832332,-495.7705662,9.999e-05,2]
[342228257,1731601832342,-17804.23670859,9.999e-05,2]
[342228258,1731601832351,-55191.07625189,0.0001,2]
[342228259,1731601832363,-62099.9999985,0.0001,2]
[342228260,1731601832387,-5869.93952718,0.0001,2]
[342228267,1731601837662,-1257.82194268,0.0001,2]
[342228268,1731601837673,-3602.2914205,0.0001,2]
[342228269,1731601837685,-1984.93877097,0.0001,2]
[342228270,1731601837721,-27623137.1308437,0.0001,2]
[342228271,1731601837792,-1232.44275,0.0001,2]
[342228275,1731601839727,-105777.16159461,0.0001,2]
[342228276,1731601839894,-2009.27400001,0.0001,2]
[342228277,1731601839905,-1370.67020544,0.0001,2]
[342228279,1731601839918,-308.02470614,0.0001,2]
[342228552,1731601842602,-311.11000002,0.0001,2]
[342228575,1731601842826,-4296.27679259,0.0001,2]
[342228579,1731601842837,-331.32,0.0001,2]
[342228584,1731601842884,-1874.16234838,0.0001,2]
[342228597,1731601843003,-948.76570169,0.0001,2]
[342228879,1731601845673,-2337.09455133,0.0001,2]
[342228881,1731601845684,-5255.90254267,0.0001,2]
[342228890,1731601845790,-622277.46188928,0.0001,2]
[342228891,1731601845802,-1102.77627399,0.0001,2]
[342228892,1731601845851,-3517.50096,0.0001,2]
[342228896,1731601845915,-363.92999208,0.0001,2]
[342229715,1731602463027,1237.85,8.219e-05,2]
[342229716,1731602633672,500.0,8.152e-05,2]
[342229717,1731602634035,500.0,8.153e-05,2]
[342229718,1731602711182,306.91032784,0.00013698,120]
[342229719,1731602751408,-254.93,8.839e-05,2]
[342229720,1731602751430,-1166.39492207,8.869e-05,2]
[342229721,1731602839101,-250.0,8.839e-05,2]
[342229722,1731602839122,-194.79931422,8.869e-05,2]
[342229723,1731602950091,-1000.0,8.852e-05,2]
[342229724,1731602950112,-320.26,8.856e-05,2]
[342229725,1731602950137,-638.80576371,8.869e-05,2]
[342229726,1731602950159,-1743.32579814,8.869e-05,2]
[342229727,1731602959167,-386.04420186,8.869e-05,2]
[342229728,1731602959190,-168.65,8.881e-05,2]
[342229729,1731602959211,-129.75739814,8.903e-05,2]
[342229737,1731602980677,-222.6658,8.874e-05,2]
[342229742,1731603031692,-27.3342,8.874e-05,2]
[342229743,1731603031703,-120.24260186,8.903e-05,2]
[342229744,1731603031712,-150.0,9.068e-05,2]
[342229745,1731603031722,-763.15,9.07e-05,2]
[342229746,1731603031731,-90.82332629,9.096e-05,2]
[342229749,1731603031743,-76.17667371,9.096e-05,2]
[342229750,1731603031753,-180.52442859,9.138e-05,2]
[342229753,1731603031772,-619.47557141,9.138e-05,2]
[342229755,1731603031781,-456.22100359,9.7e-05,2]
[342229771,1731603032166,-834.94279641,9.7e-05,2]
[342229773,1731603032178,-158.77259713,9.7e-05,2]
[342229775,1731603032190,-268.07010932,9.7e-05,2]
[342229777,1731603032202,-1449.08004055,9.7e-05,2]
[342229779,1731603032213,-627.51880542,9.7e-05,2]
[342229782,1731603032224,-1075.50494758,9.7e-05,2]
[342229783,1731603032234,-145.80549098,9.715e-05,2]
[342229786,1731603032245,-15.20450902,9.715e-05,2]
[342229788,1731603032254,-161.01,9.721e-05,2]
[342229790,1731603032264,-161.01,9.726e-05,2]
[342229792,1731603032273,-161.01,9.731e-05,2]
[342229794,1731603032282,-161.01,9.737e-05,2]
[342229796,1731603032291,-161.01,9.742e-05,2]
[342229798,1731603032300,-161.01,9.748e-05,2]
[342229800,1731603032310,-300.57,9.75e-05,2]
[342229802,1731603032320,-161.01,9.753e-05,2]
[342229803,1731603032331,-161.01,9.758e-05,2]
[342229805,1731603032341,-161.01,9.764e-05,2]
[342229807,1731603032350,-12190.545,9.8e-05,2]
[342229809,1731603032360,-10874.8489,9.8e-05,2]
[342229811,1731603032370,-132001.2587,9.8e-05,2]
[342229813,1731603032380,-1000.0,9.88e-05,2]
[342229815,1731603032389,-100000.0,9.88e-05,2]
[342229817,1731603032400,-500.0,9.88e-05,2]
[342229819,1731603032409,-1468.5218,9.88e-05,2]
[342229821,1731603032424,-97971.0913,9.893e-05,2]
[342229823,1731603032434,-232.9437,9.893e-05,2]
[342229825,1731603032443,-187897.99553938,9.893e-05,2]
[342229828,1731603032455,-53303.90380412,9.893e-05,2]
[342229830,1731603032466,-1650.0922576,9.893e-05,2]
[342229832,1731603032478,-116185.1797989,9.893e-05,2]
[342229834,1731603032487,-8992.571,9.893e-05,2]
[342229836,1731603032497,-1029.0,9.9e-05,2]
[342229838,1731603032507,-433.2,9.943e-05,2]
[342229840,1731603032516,-433.2,9.943e-05,2]
[342229842,1731603032526,-433.2,9.943e-05,2]
[342229844,1731603032536,-879.65,9.943e-05,2]
[342229846,1731603032545,-1000.0,9.958e-05,2]
[342229848,1731603032555,-500.0,9.973e-05,2]
[342229850,1731603032565,-500.0,9.973e-05,2]
[342229852,1731603032574,-614.12831935,9.973e-05,2]
[342229854,1731603032584,-500.0,9.973e-05,2]
[342229856,1731603032594,-211.34274793,9.973e-05,2]
[342229858,1731603032603,-500.0,9.973e-05,2]
[342229860,1731603032613,-1802.566,9.973e-05,2]
[342229862,1731603032623,-174.684,9.973e-05,2]
[342229864,1731603032632,-7154.82927732,9.992e-05,2]
[342229866,1731603032642,-6146.3565009,9.992e-05,2]
[342229868,1731603032651,-2720.5767296,9.992e-05,2]
[342229870,1731603032660,-194.3653769,9.992e-05,2]
[342229872,1731603032674,-184.272657,9.992e-05,2]
[342229874,1731603032684,-846.8777136,9.992e-05,2]
[342229876,1731603032693,-170402.9478714,9.993e-05,2]
[342229878,1731603032705,-616.81048728,9.993e-05,2]
[342229881,1731603032720,-156803.6617545,9.993e-05,2]
[342229883,1731603032732,-28160.58044107,9.993e-05,2]
[342229886,1731603032748,-1450.0,9.993e-05,2]
[342229888,1731603032760,-5358.28634486,9.993e-05,2]
[342229890,1731603032771,-993.22696295,9.993e-05,2]
[342230363,1731603037729,-78541.85547244,9.993e-05,2]
[342230377,1731603037844,-1140.474,9.993e-05,2]
[342230379,1731603037856,-485.62531231,9.993e-05,2]
[342230385,1731603037909,-360.3280325,9.993e-05,2]
[342230392,1731603037967,-27623137.1308437,9.993e-05,2]
[342230394,1731603037979,-1056.81499998,9.993e-05,2]
[342230397,1731603037989,-9342.46809932,9.993e-05,2]
[342230402,1731603038029,-2025.83462035,9.993e-05,2]
[342230404,1731603038041,-3524.36723327,9.993e-05,2]
[342230406,1731603038052,-1064.69513782,9.993e-05,2]
[342230409,1731603038063,-266.90600016,9.993e-05,2]
[342230575,1731603039703,-3395.8631775,9.993e-05,2]
[342230577,1731603039720,-276.17271155,9.993e-05,2]
[342230580,1731603039739,-1575.29999999,9.993e-05,2]
[342230582,1731603039751,-2990.51800064,9.993e-05,2]
[342230584,1731603039762,-2658.3630564,9.993e-05,2]
[342230590,1731603039805,-3399.83499949,9.993e-05,2]
[342230592,1731603039816,-9378.57002255,9.993e-05,2]
[342230598,1731603039865,-1283.36827376,9.993e-05,2]
[342230600,1731603039876,-3491.11023332,9.993e-05,2]
[342230606,1731603039925,-24104.6103854,9.993e-05,2]
[342230613,1731603039983,-513.48784235,9.993e-05,2]
[342230616,1731603039994,-10949.37540823,9.993e-05,2]
[342230713,1731603042839,-2851.84220795,9.993e-05,2]
[342230715,1731603042850,-2845.50350809,9.993e-05,2]
[342230716,1731603042861,-2952.07701183,9.993e-05,2]
[342230717,1731603043010,-423.39614367,9.993e-05,2]
[342230718,1731603043067,-166378.55896882,9.993e-05,2]
[342230733,1731603045828,-4539.01241504,9.993e-05,2]
[342230736,1731603045840,-465823.14862932,9.993e-05,2]
[342230742,1731603045887,-3147.39296001,9.993e-05,2]
[342230749,1731603045951,-813.10000626,9.993e-05,2]
[342230756,1731603046013,-26556.02784,9.993e-05,2]
[342230758,1731603046025,-1187.93311483,9.993e-05,2]
[342230776,1731603046185,-43.96595423,9.993e-05,2]
[342230778,1731603046197,-666829.65549636,9.993e-05,2]
[342230783,1731603046248,-88656.04292844,9.993e-05,2]
[342230785,1731603124872,-1097.1882,9.7e-05,2]
[342230786,1731603124894,-509.42740949,9.77e-05,2]
[342230787,1731603124917,-300.0,9.779e-05,2]
[342230788,1731603124939,-57977.90529051,9.78e-05,2]
[342230789,1731603162308,-354.58,9.7e-05,2]
[342230790,1731603162331,-150.0,9.715e-05,2]
[342230791,1731603162356,-150.0,9.74e-05,2]
[342230792,1731603162377,-150.0,9.746e-05,2]
[342230793,1731603162402,-150.0,9.762e-05,2]
[342230794,1731603162425,-150.0,9.762e-05,2]
[342230795,1731603162449,-150.0,9.764e-05,2]
[342230796,1731603162472,-63338.2081,9.78e-05,2]
[342230797,1731603241507,500.0,0.000217,120]
[342230798,1731603340160,1210.1,8.219e-05,2]
[342230799,1731603817960,500.0,8.153e-05,2]
[342230800,1731603933328,-282.70823549,8.882e-05,2]
[342230801,1731604053131,-1852.42,8.754e-05,2]
[342230802,1731604053153,-150.0,8.881e-05,2]
[342230803,1731604053179,-517.29176451,8.882e-05,2]
[342230804,1731604053200,-250.0,8.882e-05,2]
[342230805,1731604053227,-10628.29086611,8.882e-05,2]
[342230806,1731604148307,-209.16,8.753e-05,2]
[342230807,1731604148329,-8209.54913389,8.882e-05,2]
[342230808,1731604148350,-1000.0,8.882e-05,2]
[342230809,1731604148372,-250.0,8.882e-05,2]
[342230810,1731604148393,-459.42025314,8.882e-05,2]
[342230811,1731604151166,-150.0,9e-05,2]
[342230812,1731604199564,1773.49,8.882e-05,2]
[342230813,1731604228250,160.0,8.882e-05,2]
[342230816,1731604231951,-167.0,9.012e-05,2]
[342230817,1731604231961,-2362.0,9.599e-05,2]
[342230818,1731604231972,-698.42,9.68e-05,2]
[342230819,1731604231982,-1049.5089044,9.68e-05,2]
[342230820,1731604231991,-150.0,9.699e-05,2]
[342230821,1731604232001,-300.0,9.699e-05,2]
[342230822,1731604232010,-84473.50199047,9.7e-05,2]
[342230823,1731604232053,-0.04392802,9.7e-05,2]
[342230824,1731604232064,-5952.03365238,9.7e-05,2]
[342230825,1731604232123,-106.90368121,9.7e-05,2]
[342230826,1731604232134,-2017.20116009,9.7e-05,2]
[342230827,1731604232152,-956.71339648,9.7e-05,2]